{"text_format":"2","workbook":"xlsx","n_sheets":1,"sheets":["Stranica 1"],"not_rendered":{"charts":0,"images":0,"macros":0,"external_links":0,"defined_names":0,"comments":0,"pivot_tables":0},"unopened":[],"bounds":{"document_bytes":16777216,"sheet_cells":100000,"run_cost":"one","rows_first":2000,"rows_last":500,"rows_between":2000,"halvings":0,"cell_chars":16384,"cell_head_chars":4096},"cells_cut":0,"cells_raw":0,"read":"whole","date_system":"1900"}

{"sheet":"Stranica 1","index":0,"n_rows":80,"n_cols":20,"rows_kept":80,"cut":false,"hidden":false,"merged":[[36,9,36,11],[36,14,36,17],[37,9,37,11],[37,14,37,17],[21,14,21,17],[33,9,33,11],[33,14,33,17],[34,9,34,11],[34,14,34,17],[35,9,35,11],[35,14,35,17],[30,9,30,11],[30,14,30,17],[31,9,31,11],[31,14,31,17],[32,9,32,11],[32,14,32,17],[27,9,27,11],[27,14,27,17],[28,9,28,11],[28,14,28,17],[29,9,29,11],[29,14,29,17],[18,14,18,17],[19,14,19,17],[20,14,20,17],[24,14,24,17],[26,9,26,11],[26,14,26,17],[15,9,15,11],[15,14,15,17],[16,9,16,11],[16,14,16,17],[17,9,17,11],[17,14,17,17],[12,9,12,11],[12,14,12,17],[13,9,13,11],[13,14,13,17],[14,9,14,11],[14,14,14,17],[9,9,9,11],[9,14,9,17],[10,9,10,11],[10,14,10,17],[11,9,11,11],[11,14,11,17],[6,9,6,11],[6,14,6,17],[7,9,7,11],[7,14,7,17],[8,9,8,11],[8,14,8,17],[3,9,3,11],[3,14,3,17],[4,9,4,11],[4,14,4,17],[5,9,5,11],[5,14,5,17],[22,1,23,1],[22,0,23,0],[0,0,0,19]]}
["CJENIK LABORATORIJSKIH PRETRAGA"]
[]
["HEMATOLOGIJA ","EUR","-20%","S 100",33,{"$f":"E3-(E3*0.2)","v":26.4},"OSTALO ","EUR","-20%","MIKROBIOLOŠKE ANALIZE",null,null,"EUR","-20%",{"$nulls":4},"EUR","-20%"]
["Sedimentacija",3,{"$f":"B4-(B4*0.2)","v":2.4},"CA 72-4",20,{"$f":"E4-(E4*0.2)","v":16},"B12",25,{"$f":"H4-(H4*0.2)","v":20},"CMV IgM razred antitijela na Citomegalovirus",null,null,36,{"$f":"M4-(M4*0.2)","v":28.8},"IgG + IgM razred antitijela na Mycoplasma pneumoniae",null,null,null,65,{"$f":"S4-(S4*0.2)","v":52}]
["Leukociti",7.5,{"$f":"B5-(B5*0.2)","v":6},"CA 19-9",19,15.2,"Folna kiselina",25,{"$f":"H5-(H5*0.2)","v":20},"CMV IgG razred antitijela na Cltomegalovirus",null,null,36,{"$f":"M5-(M5*0.2)","v":28.8},"IgG razred antitijela na Krpeljni meningoencefalitis",null,null,null,42,{"$f":"S5-(S5*0.2)","v":33.6}]
["Trombociti",7.5,6,"PSA",20,16,"Vitamin D",30,24,"EBV VCA IgM razred antitijela na Epstein-Barr virus kapsidni antigen",null,null,32,25.6,"IgM razred antitijela na Krpeljni meningoencefalitis",null,null,null,42,33.6]
["Kompletna krvna slika",7.5,6,"fPSA",20,16,"(Zn) Cink",26.6,21.28,"EBV VCA IgG razred antitijela na Epstein-Barr virus kapsidni antigen",null,null,32,25.6,"IgG razred antitijela na Morbilli",null,null,null,33,26.4]
["DKS",16.600000000000001,13.280000000000001,"beta HCG (ukupni + beta jedinica)",20.5,16.399999999999999,"C-peptid",24,19.2,"EBV EBNA IgG razred antitijela na Epstein-Bart virus-nuclear antigen",null,null,30,24,"IgM razred antitijela na Morbilli",null,null,null,33,26.4]
["Reti kulociti",6.5,5.2,"NSE",20,16,"Žučne kiseline",49,39.200000000000003,"VZV IgM razred antitijela na Varicella zoster virus",null,null,27,21.6,"IgG razred antitijela na Rubella",null,null,null,30,24]
[null,null,null,"CYFRA 21-1",20,16,"SARS-CoV-2 IgM /IgG",6.7,5.36,"VZV IgG razred antitijela na Varicella zoster virus",null,null,27,21.6,"IgM razred antitijela na Rubella",null,null,null,30,24]
["URIN KVALITATIVNO ","EUR","-20%","Tireoglobulin (TG)",36,28.8,"SARS-CoV-kvant-IgG",9.5,7.6,"HSV-1 IgG razred antitijela na Herpes Simplex 1",null,null,30,24,"IgG razred antitijela na Borrelia burgdorferi",null,null,null,33,26.4]
["Urin: test traka i sediment",7.5,6,"VEGF",100,80,"GASTRO PANEL",55,44,"HSV-2 IgG razred antitijela na Herpes Simplex 2",null,null,30,24,"IgM razred antitijela na Borrelia burgdorferi",null,null,null,33,26.4]
[{"$nulls":6},"Gripa A I B brzi antigen test",20,16,"HSV-1 / HSV -2 IgM razred antitijela na Herpes Simplex 1 I 2",null,null,30,24,"IgG razred antitijela na Bordetella pertusis",null,null,null,42,33.6]
["KOAGULACIJA ","EUR","-20%","HORMONI ","EUR","-20%","RSV brzi antigen test",14,11.2,"IgG razred antitijela na Toxoplasma gondii",null,null,30,24,"IgM razred antitijela na Bordetella pertusis",null,null,null,42,33.6]
["PV",9.6,7.68,"Estradiol",16.5,13.2,"Adeno virus brzi antigen test",16,12.8,"IgM razred antitijela na Toxoplasma gondii",null,null,30,24,"IgA razred antitijela na Bordetella pertusis",null,null,null,42,33.6]
["APTV",9.6,7.68,"FSH",17,13.6,"Streptokok brzi antigen test",12,9.6,"IgG razred antitijela na Mumps",null,null,33,26.4,"IgG razred antitijela na Parvovirus 19",null,null,null,40,32]
["Fibrinogen",9.6,7.68,"LH",17,13.6,null,null,null,"IgM razred antitijela na Mumps",null,null,33,26.4,"IgM razred antitijela na Parvovirus 19",null,null,null,40,32]
["D Dimeri",35,28,"Progesteron",17,13.6,"KOŠTANI MARKERI ","EUR","-20%","TORCH",null,null,200,160,"IgG razred antitijela na Chlamydia trachiomatis",null,null,null,42,33.6]
[null,null,null,"Prolaktin",17,13.6,"PTH",26,20.8,{"$nulls":5},"IgA razred antitijela na Chlamydia trachiomatis",null,null,null,42,33.6]
["SUPSTRATI ","EUR","-20%","Sekrecijski prolaktin",46.5,37.200000000000003,{"$nulls":8},"Candida IgA antitijela",null,null,null,38,30.4]
["Glukoza",3,2.4,"Testosteron",17,13.6,"HELICOBACTER PYLORI ","EUR","-20%",{"$nulls":5},"Candida IgM antitijela",null,null,null,38,30.4]
["Opterećenje glukozom (dvije točke)",18,14.4,"Slobodni testosteron",36,28.8,"Helicobacter pylori u stolici",15,12,{"$nulls":5},"Candida IgG antitijela",null,null,null,38,30.4]
["Opterećenje glukozom za trudnice (3 točke)",19,15.2,"DHEA-S",18,14.4,"Helicobacter pylori antitijela serum",15,12]
[null,null,null,"SHBG",18,14.4,"Helicobacter pylori - tipizacija",69,55.2]
["HbA1c",14,11.2,"TSH",9.5,7.6]
["Bilirubin ukupni",3,2.4,"Ft3",9.5,7.6,"SPECIJALNE PRETRAGE","EUR","-20%","MOLEKULARNA DIJAGNOSTIKA",null,null,"EUR","-20%",{"$nulls":4},"EUR","-20%"]
["Bilirubin direktni (konjugirani)",3,2.4,"T3",9.5,7.6,"Test ntolerancije na 93 namirnice",286,228.8,"PCR detekciju respiratornog virusnog panela (SARS-CoV-2, Influenca A, Influe nca B i RSV)",null,null,66,52.8,"PCR detekcija Ureaplasma Parvum",null,null,null,40,32]
["Bilirubin indirektni (nekonjugirani)",1,0.8,"Ft4",9.5,7.6,"Test intolerancije na 125 namirnica",343,274.39999999999998,"PCR detekcija SARS-CoV-2 virusa",null,null,57,45.6,"PCR detekcija Treponema Pallidum",null,null,null,40,32]
["Ureja",3,2.4,"T4",9.5,7.6,"Test intolerancije na 220 namirnica",396,316.8,"PCR detekcija HPV (Humani papiloma virus) dokaz visokog i niskog rizika (genotipizacija)",null,null,58,46.4,"PCR detekcija Trichomonas vaginalis",null,null,null,40,32]
["Urat (mokračna kiselina)",3,2.4,"Kortizol",24,19.2,"Vegetarijanski panel",220,176,"PCR detekcija Hepatitis B I Hepatitis C virusa (HBV I HCV)",null,null,66,52.8,"PCR detekcija Candida albicans",null,null,null,40,32]
["Kreatinin (serum urin)",3,2.4,"AMH",48,38.4,"Analiza minerala u kosi",297,237.6,"PCR detekcija HIV (genotipizacija HIV-1 I HIV-2)",null,null,60,48,"STD 4",null,null,null,98,78.400000000000006]
["Kreatinin klirens",12,9.6,null,null,null,"Alergo 295",363,290.39999999999998,"PCR detekcija HSV (Herpes simplex 1 i 2) dokazivanje i genotipizacija",null,null,60,48,"STD 7 ",null,null,null,200,160]
[null,null,null,"MARKERI HEPATITISA ","EUR","-20%","Alergo inhalacijski",237,189.6,"PCR detekcija Chlamydia trachomatis",null,null,40,32,"STD 10",null,null,null,260,208]
["ELEKTROLITI ","EUR","-20%","Anti-HAV-IgM",22,17.600000000000001,"Alergo Inhalacijski plus",297,237.6,"PCR detekciju Gonorea (Neisseria gonorrhoeae)",null,null,40,32,"STD 15",null,null,null,370,296]
["Natrij (serum ili urin)",4,3.2,"Anti-HAV",24,19.2,"Alergo nutritivni",297,237.6,"PCR detekcija Gardenella Vaginalis",null,null,40,32,"PCR detekcija parodontopatogenih bakterija",null,null,null,60,48]
["Kalij (serum)",4,3.2,"HbsAg",20,16,"Alergo pedijatrijski",237,189.6,"PCR detekcija Mycoplasma hominis",null,null,40,32,"PCR detekcija CMV",null,null,null,132,105.6]
["Kalij (urin)",4,3.2,"Anti-HBs",21,16.8,"Transglutaminaza IgA",33,26.4,"PCR detekcija Mycoplasma genitalium",null,null,40,32,"PCR detekcija EBV",null,null,null,132,105.6]
["Kalcij (serum)",3,2.4,"Anti-HBc",30,24,"Transglutaminaza IgG",33,26.4,"PCR detekciju Ureaplasma urealyticum",null,null,40,32,"PCR detekcija panel infektivne mononukleoze",null,null,null,150,120]
["Kalcij (urin)",6,4.8,"Anti-HBc IgM",26,20.8,"VDRL",10,8]
["Magnezij (serum ili urin)",3.5,2.8,"Anti-Hbe",26,20.8,"TPHA Antitreponenski test",20,16]
["Klorid (serum)",4,3.2,"Anti-HCV",25,20]
["Klorid (urin)",4,3.2,"HbeAg",23.5,18.8]
["Fosfor (serum urin)",3,2.4]
["željezo",3,2.4,"SPECIJALNI PROTEINI ","EUR","-20%"]
["Litij",15,12,"CRP (C reaktivni protein)",7.5,6]
["UIBC",3,2.4,"Homocistein",26,20.8]
["TIBC",2.5,2,"Feritin",15,12]
[null,null,null,"IgG Omunoglobulin G)",9.5,7.6]
["MASNOĆE ","EUR","-20%","IgM (imunoglobulin M)",9.5,7.6]
["Trigliceridi",3,2.4,"IgA (imunoglobulin A)",9.5,7.6]
["Kolesterol",3,2.4,"IgE (imunoglobulin E)",17.5,14]
["HDL kolesterol",3,2.4,"C3",13,10.4]
["LDL kolesterol",3,2.4,"C4",13,10.4]
[null,null,null,"RF (lateks)",12,9.6]
["PROTEINI ","EUR","-20%","ASO (lateks)",12,9.6]
["Albumin u serumu",3,2.4,"ASTA",16,12.8]
["Ukupni proteini u serumu",3,2.4,"Waaler Rose (hemaglutinacija)-antitijela",17,13.6]
["Ukupni proteini u urinu",11,8.8000000000000007,"anti CCP (EDRA CPA)",42,33.6]
["Mikroalbumini u urinu",12,9.6,"Infektivna mononukleoza - antitijela",15,12]
["Elektroforeza proteina u serum",17,13.6,"Inzulin",18,14.4]
[null,null,null,"Anti TPO",25,20]
["ENZIMI ","EUR","-20%","Anti TG",25,20]
["AST (aspartat aminotransferaza)",3,2.4,"proBNP",42.5,34]
["ALT (alanin aminotransferaza)",3,2.4,"Okultno krvarenje u stolici",13,10.4]
["GGT (gama glutamil transferaza)",3,2.4,"Perianalni otisak",16,12.8]
["Alfa Amilaza (serum ili urin)",3,2.4,"Kalprotektin u stolici ",28,22.4]
["AP (alkalna fosfataza)",3,2.4,"Troponin",20,16]
["CK (kreatin kinaza)",3,2.4]
["CK-MB",26,{"$f":"B69-(B69*0.2)","v":20.8},"TOKSICNE SUPSTANCE (DROGE) ","EUR","-20%"]
["LDH Oaktat dehidrogenaza)",3,2.4,"1 parametar",21,{"$f":"E70-(E70*0.2)","v":16.8}]
["CHE (kolinesteraza)",11,8.8000000000000007,"5 parametara",32,25.6]
["Lipaza",10.3,8.24,"6 parametara",47,37.6]
[null,null,null,"10 parametara",50,40]
["TUMOR MARKERI ","EUR","-20%","Alkohol",22,17.600000000000001]
["AFP",20,16]
["CEA",18,14.4,"HIV","EUR","-20%"]
["CA 15-3",19,15.2,"anti-HIV 1, 2, p24 Antigen test",33,{"$f":"E77-(E77*0.2)","v":26.4}]
["CA 125",19,15.2]
["HE4",26.3,21.04]
["ROMA INDEX",43,34.4]